fUSD/lending_fUSD_20260107
["ID","MTS","AMOUNT","RATE_DAILY","PERIOD"]
[400664546,1767775845517,-222.615984,0.00031507,31]
[400664548,1767775845526,-345.359015,0.00031507,31]
[400664550,1767775845535,-222.615984,0.00031507,31]
[400664552,1767775845544,-345.359015,0.00031507,31]
[400664554,1767775845554,-222.615984,0.00031507,31]
[400664555,1767775845564,-345.359015,0.00031507,31]
[400664557,1767775845574,-222.615984,0.00031507,31]
[400664559,1767775845583,-1443.304395,0.00031507,31]
[400664561,1767775845592,-1443.304395,0.00031507,31]
[400664563,1767775845601,-1443.304395,0.00031507,31]
[400664565,1767775845611,-1443.304395,0.00031507,31]
[400664567,1767775845620,-199.098915,0.00031507,31]
[400664569,1767775845629,-199.098915,0.00031507,31]
[400664571,1767775845639,-199.098915,0.00031507,31]
[400664573,1767775845649,-199.098915,0.00031507,31]
[400664575,1767775845658,-151.0,0.00031507,2]
[400664577,1767775845670,-151.0,0.00031507,2]
[400664579,1767775845680,-151.0,0.00031507,2]
[400664581,1767775845689,-513.0,0.00031547,3]
[400664583,1767775845699,-287.61899177,0.00031799,2]
[400664585,1767775845708,-290.08099,0.00031846,31]
[400664587,1767775845720,-151.0,0.00031846,31]
[400664589,1767775845731,-151.0,0.00031846,31]
[400664591,1767775845741,-151.0,0.00031846,31]
[400664593,1767775845750,-151.0,0.00031846,31]
[400664595,1767775845760,-151.0,0.00031846,31]
[400664597,1767775845769,-151.0,0.00031846,31]
[400664599,1767775845779,-487.4,0.000319,2]
[400664602,1767775845788,-2354.0,0.00032167,5]
[400664605,1767775845798,-156.9,0.00032378,2]
[400664608,1767775845807,-170.06488283,0.00032433,2]
[400664610,1767775845816,-335.24,0.00032503,2]
[400664612,1767775845826,-236.98416191,0.00032649,2]
[400664614,1767775845835,-151.0,0.00032706,7]
[400664616,1767775845844,-179.036389,0.00032706,7]
[400664619,1767775845854,-151.0,0.00032706,31]
[400664622,1767775845863,-184.6862361,0.00032712,2]
[400664625,1767775845873,-1000.0,0.000328,7]
[400664628,1767775845882,-966.155108,0.00032846,31]
[400664631,1767775845892,-1405.0,0.00032846,2]
[400664633,1767775845901,-3467.0,0.00032846,2]
[400664636,1767775845911,-496.592,0.00032846,2]
[400664639,1767775845921,-614.0,0.00032846,2]
[400664641,1767775845930,-1264.0,0.00032846,2]
[400664643,1767775845940,-150.0,0.00032846,2]
[400664645,1767775845950,-565.0,0.00032846,2]
[400664647,1767775845959,-2436.0,0.00032846,2]
[400664649,1767775845968,-151.0,0.00032877,31]
[400664651,1767775845978,-151.0,0.00032877,31]
[400664653,1767775845987,-151.0,0.00032877,31]
[400664655,1767775845998,-151.0,0.00032877,31]
[400664657,1767775846009,-500.0,0.00033123,2]
[400664660,1767775846019,-298.26089446,0.00033168,2]
[400664662,1767775846029,-513.0,0.00033218,5]
[400664664,1767775846039,-525.72,0.000333,2]
[400664666,1767775846050,-913.14,0.00033428,2]
[400664668,1767775846059,-176.0,0.00033535,120]
[400664670,1767775846068,-175.0,0.00033535,120]
[400664672,1767775846078,-335.24,0.00033599,2]
[400664674,1767775846088,-653.0,0.000339,2]
[400664676,1767775846097,-1000.0,0.00034,7]
[400664678,1767775846106,-2635.79412451,0.00034185,2]
[400664680,1767775846115,-365.38685864,0.00034537,2]
[400664682,1767775846125,-513.0,0.00034889,7]
[400664684,1767775846134,-537.0,0.00035,120]
[400664686,1767775846145,-525.72,0.00035,2]
[400664688,1767775846154,-176.0,0.00035211,120]
[400664690,1767775846163,-175.0,0.00035211,120]
[400664692,1767775846173,-808.38,0.00035301,120]
[400664694,1767775846183,-528.9,0.00035616,25]
[400664696,1767775846297,-709.5,0.00035616,22]
[400664698,1767775846308,-603.6,0.00035616,24]
[400664700,1767775846318,-624.9,0.00035616,15]
[400664702,1767775846327,-151.0,0.00035616,31]
[400664704,1767775846336,-151.0,0.00035616,31]
[400664706,1767775846345,-151.0,0.00035616,31]
[400664708,1767775846354,-151.0,0.00035616,31]
[400664710,1767775846363,-151.0,0.00035616,31]
[400664712,1767775846373,-151.0,0.00035616,31]
[400664714,1767775846382,-170.06488283,0.00035619,2]
[400664716,1767775846391,-1405.0,0.00035846,2]
[400664718,1767775846402,-3467.0,0.00035846,2]
[400664720,1767775846411,-614.0,0.00035846,2]
[400664722,1767775846420,-565.0,0.00035846,2]
[400664724,1767775846430,-2436.0,0.00035846,2]
[400664726,1767775846439,-156.9,0.00035976,2]
[400664728,1767775846449,-500.01,0.00036,30]
[400664730,1767775846459,-513.0,0.0003656,9]
[400664732,1767775846467,-236.98416191,0.00036685,2]
[400664734,1767775846477,-500.01,0.0003672,30]
[400664736,1767775846486,-175.0,0.000369,120]
[400664738,1767775846496,-152.0,0.0003694,3]
[400664740,1767775846506,-176.0,0.00036972,120]
[400664742,1767775846516,-175.0,0.00036972,120]
[400664744,1767775846525,-525.72,0.00037,2]
[400664746,1767775846535,-175.0,0.00037397,120]
[400664748,1767775846544,-500.01,0.0003744,30]
[400664750,1767775846553,-1759.79,0.00037575,120]
[400664752,1767775846563,-661.02,0.00037726,2]
[400664754,1767775846572,-53973.99690133,0.000379,30]
[400664755,1767775846582,-219.49296091,0.00038,120]
[400664757,1767775846591,-525.72,0.000381,2]
[400664760,1767775846602,-500.01,0.0003816,30]
[400664762,1767775846612,-513.0,0.00038231,11]
[400664763,1767775846621,-2635.79412451,0.00038256,2]
[400664765,1767775846631,-290.56,0.000383,30]
[400664767,1767775846640,-300.0,0.00038355,10]
[400664770,1767775846650,-651.03116604,0.00038355,30]
[400664772,1767775846659,-13527.14730698,0.00038356,2]
[400664774,1767775846669,-15300.30113482,0.00038356,4]
[400664776,1767775846678,-543.48,0.00038356,14]
[400664777,1767775846687,-500.0,0.00038356,14]
[400664780,1767775846696,-1532.42,0.00038356,14]
[400664782,1767775846706,-500.0,0.00038356,14]
[400664784,1767775846716,-500.0,0.00038356,14]
[400664786,1767775846729,-639.4,0.00038356,14]
[400664788,1767775846739,-500.0,0.00038356,14]
[400664790,1767775846748,-500.0,0.00038356,14]
[400664792,1767775846757,-500.0,0.00038356,14]
[400664794,1767775846768,-500.0,0.00038356,14]
[400664795,1767775846778,-500.0,0.00038356,14]
[400664798,1767775846788,-500.0,0.00038356,14]
[400664800,1767775846799,-500.0,0.00038356,14]
[400664802,1767775846808,-508.62,0.00038356,14]
[400664803,1767775846818,-500.0,0.00038356,14]
[400664805,1767775846828,-796.15,0.00038356,14]
[400664807,1767775846837,-500.0,0.00038356,14]
[400664810,1767775846847,-500.0,0.00038356,14]
[400664811,1767775846856,-500.0,0.00038356,5]
[400664813,1767775846865,-500.0,0.00038356,14]
[400664815,1767775846875,-500.0,0.00038356,14]
[400664817,1767775846884,-512.58952846,0.00038356,14]
[400664819,1767775846893,-500.0,0.00038356,14]
[400664821,1767775846903,-500.0,0.00038356,14]
[400664823,1767775846913,-500.0,0.00038356,14]
[400664826,1767775846923,-500.0,0.00038356,14]
[400664828,1767775846932,-500.0,0.00038356,14]
[400664830,1767775846941,-500.0,0.00038356,14]
[400664832,1767775846950,-500.0,0.00038356,14]
[400664834,1767775846960,-500.0,0.00038356,14]
[400664836,1767775846969,-500.0,0.00038356,14]
[400664838,1767775846978,-500.0,0.00038356,14]
[400664840,1767775846988,-500.0,0.00038356,14]
[400664842,1767775846997,-500.0,0.00038356,14]
[400664844,1767775847006,-500.0,0.00038356,3]
[400664846,1767775847015,-500.0,0.00038356,14]
[400664848,1767775847025,-500.0,0.00038356,14]
[400664850,1767775847034,-500.0,0.00038356,14]
[400664852,1767775847044,-500.0,0.00038356,14]
[400664854,1767775847054,-500.0,0.00038356,14]
[400664856,1767775847063,-500.0,0.00038356,14]
[400664858,1767775847072,-863.0,0.00038356,120]
[400664860,1767775847081,-1381.47,0.00038356,14]
[400664862,1767775847091,-519.80868564,0.00038356,14]
[400664864,1767775847100,-555.13593866,0.00038356,14]
[400664866,1767775847110,-597.03,0.00038356,14]
[400664868,1767775847119,-500.0,0.00038356,14]
[400664870,1767775847128,-500.0,0.00038356,14]
[400664872,1767775847137,-500.0,0.00038356,14]
[400664874,1767775847146,-509.4398322,0.00038356,14]
[400664876,1767775847156,-569.51,0.00038356,14]
[400664878,1767775847165,-500.0,0.00038356,14]
[400664880,1767775847175,-500.0,0.00038356,14]
[400664882,1767775847184,-500.0,0.00038356,14]
[400664884,1767775847193,-538.94459624,0.00038356,14]
[400664886,1767775847202,-1783.07,0.00038356,14]
[400664888,1767775847212,-500.0,0.00038356,14]
[400664890,1767775847221,-500.0,0.00038356,14]
[400664892,1767775847230,-525.44905661,0.00038356,14]
[400664894,1767775847239,-679.21,0.00038356,14]
[400664896,1767775847248,-500.0,0.00038356,14]
[400664898,1767775847257,-500.0,0.00038356,14]
[400664900,1767775847266,-500.0,0.00038356,14]
[400664902,1767775847276,-500.0,0.00038356,14]
[400664904,1767775847286,-500.0,0.00038356,14]
[400664906,1767775847296,-1056.03,0.00038356,14]
[400664908,1767775847306,-518.63441108,0.00038356,14]
[400664910,1767775847315,-929.63,0.00038356,14]
[400664912,1767775847325,-461.85723905,0.00038356,14]
[400664914,1767775847334,-500.0,0.00038356,14]
[400664916,1767775847344,-500.0,0.00038356,14]
[400664918,1767775847355,-504.94,0.00038356,14]
[400664920,1767775847368,-627.52290504,0.00038356,14]
[400664922,1767775847382,-503.51062736,0.00038356,14]
[400664924,1767775847393,-505.88593407,0.00038356,14]
[400664926,1767775847404,-500.0,0.00038356,14]
[400664928,1767775847413,-500.0,0.00038356,14]
[400664930,1767775847424,-980.4,0.00038356,14]
[400664932,1767775847433,-500.0,0.00038356,14]
[400664934,1767775847442,-500.0,0.00038356,14]
[400664936,1767775847452,-500.0,0.00038356,14]
[400664938,1767775847463,-500.0,0.00038356,14]
[400664940,1767775847474,-500.0,0.00038356,14]
[400664942,1767775847483,-631.73427095,0.00038356,14]
[400664944,1767775847493,-500.0,0.00038356,14]
[400664946,1767775847502,-500.0,0.00038356,14]
[400664948,1767775847511,-501.32423715,0.00038356,14]
[400664950,1767775847521,-500.0,0.00038356,14]
[400664952,1767775847530,-500.0,0.00038356,14]
[400664954,1767775847539,-2918.87528155,0.00038356,14]
[400664956,1767775847548,-500.0,0.00038356,14]
[400664958,1767775847557,-500.0,0.00038356,14]
[400664960,1767775847567,-500.0,0.00038356,14]
[400664962,1767775847576,-500.0,0.00038356,14]
[400664964,1767775847585,-500.0,0.00038356,14]
[400664966,1767775847595,-500.0,0.00038356,14]
[400664968,1767775847604,-500.0,0.00038356,14]
[400664970,1767775847613,-533.67761244,0.00038356,14]
[400664972,1767775847623,-500.0,0.00038356,14]
[400664974,1767775847632,-500.0,0.00038356,14]
[400664976,1767775847642,-500.0,0.00038356,14]
[400664979,1767775847652,-500.0,0.00038356,14]
[400664981,1767775847661,-426.0394859,0.00038356,14]
[400664983,1767775847671,-500.0,0.00038356,14]
[400664985,1767775847680,-623.49928662,0.00038356,14]
[400664986,1767775847690,-500.0,0.00038356,14]
[400664989,1767775847699,-500.0,0.00038356,14]
[400664991,1767775847709,-530.44210247,0.00038356,14]
[400664993,1767775847719,-500.0,0.00038356,14]
[400664994,1767775847730,-500.0,0.00038356,14]
[400664996,1767775847739,-500.0,0.00038356,14]
[400664997,1767775847748,-500.0,0.00038356,14]
[400664998,1767775847757,-500.0,0.00038356,14]
[400664999,1767775847766,-500.0,0.00038356,14]
[400665000,1767775847775,-500.0,0.00038356,14]
[400665001,1767775847785,-729.54,0.00038356,14]
[400665002,1767775847795,-500.0,0.00038356,14]
[400665003,1767775847804,-500.0,0.00038356,14]
[400665004,1767775847814,-500.0,0.00038356,14]
[400665006,1767775847823,-500.0,0.00038356,14]
[400665008,1767775847834,-500.0,0.00038356,14]
[400665010,1767775847844,-500.0,0.00038356,14]
[400665012,1767775847853,-500.0,0.00038356,14]
[400665014,1767775847863,-642.43301376,0.00038356,14]
[400665016,1767775847873,-500.0,0.00038356,14]
[400665018,1767775847882,-500.0,0.00038356,14]
[400665020,1767775847891,-500.0,0.00038356,14]
[400665022,1767775847900,-500.0,0.00038356,14]
[400665024,1767775847910,-500.0,0.00038356,14]
[400665027,1767775847920,-500.0,0.00038356,14]
[400665028,1767775847929,-500.0,0.00038356,14]
[400665030,1767775847939,-1090.61,0.00038356,14]
[400665033,1767775847949,-500.0,0.00038356,14]
[400665035,1767775847958,-500.0,0.00038356,14]
[400665037,1767775847968,-500.0,0.00038356,14]
[400665039,1767775847977,-500.0,0.00038356,14]
[400665041,1767775847986,-500.0,0.00038356,14]
[400665043,1767775847995,-500.0,0.00038356,14]
[400665045,1767775848005,-500.0,0.00038356,14]
[400665047,1767775848014,-500.0,0.00038356,14]
[400665049,1767775848023,-500.0,0.00038356,14]
[400665051,1767775848032,-578.34,0.00038356,14]
[400665053,1767775848041,-500.0,0.00038356,14]
[400665055,1767775848050,-500.0,0.00038356,14]
[400665057,1767775848059,-500.0,0.00038356,14]
[400665059,1767775848068,-354.61088621,0.00038356,14]
[400665061,1767775848078,-500.0,0.00038356,14]
[400665063,1767775848087,-518.53732966,0.00038356,14]
[400665065,1767775848097,-500.0,0.00038356,14]
[400665067,1767775848107,-490.90550265,0.00038356,14]
[400665069,1767775848116,-500.0,0.00038356,14]
[400665071,1767775848125,-500.0,0.00038356,14]
[400665073,1767775848134,-500.0,0.00038356,14]
[400665075,1767775848143,-500.0,0.00038356,14]
[400665077,1767775848152,-500.0,0.00038356,14]
[400665079,1767775848161,-500.0,0.00038356,14]
[400665081,1767775848170,-500.0,0.00038356,14]
[400665083,1767775848179,-500.0,0.00038356,14]
[400665085,1767775848189,-500.0,0.00038356,14]
[400665087,1767775848199,-500.0,0.00038356,14]
[400665089,1767775848208,-500.0,0.00038356,14]
[400665091,1767775848218,-500.0,0.00038356,14]
[400665093,1767775848227,-500.0,0.00038356,14]
[400665095,1767775848235,-549.35300061,0.00038356,14]
[400665097,1767775848244,-500.0,0.00038356,14]
[400665099,1767775848253,-587.97,0.00038356,14]
[400665101,1767775848262,-500.0,0.00038356,14]
[400665103,1767775848271,-500.0,0.00038356,14]
[400665105,1767775848280,-506.7297603,0.00038356,14]
[400665107,1767775848290,-500.0,0.00038356,14]
[400665109,1767775848299,-500.0,0.00038356,14]
[400665111,1767775848308,-500.0,0.00038356,14]
[400665113,1767775848317,-500.0,0.00038356,14]
[400665115,1767775848326,-500.0,0.00038356,14]
[400665117,1767775848336,-500.0,0.00038356,14]
[400665119,1767775848345,-500.0,0.00038356,14]
[400665121,1767775848354,-952.64,0.00038356,14]
[400665123,1767775848366,-500.0,0.00038356,14]
[400665125,1767775848375,-174.39456815,0.00038356,14]
[400665127,1767775848384,-470.00897931,0.00038356,14]
[400665128,1767775848395,-500.0,0.00038356,14]
[400665130,1767775848405,-500.0,0.00038356,14]
[400665132,1767775848415,-157.73007098,0.00038356,14]
[400665134,1767775848424,-500.0,0.00038356,2]
[400665136,1767775848434,-500.0,0.00038356,14]
[400665138,1767775848444,-500.0,0.00038356,14]
[400665140,1767775848453,-500.0,0.00038356,14]
[400665142,1767775848463,-500.0,0.00038356,14]
[400665145,1767775848475,-500.0,0.00038356,14]
[400665147,1767775848484,-500.0,0.00038356,14]
[400665149,1767775848493,-500.0,0.00038356,14]
[400665151,1767775848503,-500.0,0.00038356,14]
[400665153,1767775848512,-500.0,0.00038356,14]
[400665155,1767775848521,-500.0,0.00038356,14]
[400665157,1767775848531,-500.0,0.00038356,14]
[400665159,1767775848541,-507.87978057,0.00038356,14]
[400665161,1767775848550,-521.27536029,0.00038356,14]
[400665162,1767775848559,-500.0,0.00038356,14]
[400665164,1767775848569,-500.0,0.00038356,14]
[400665167,1767775848578,-500.0,0.00038356,14]
[400665169,1767775848588,-500.0,0.00038356,14]
[400665171,1767775848597,-519.97674816,0.00038356,14]
[400665173,1767775848608,-500.0,0.00038356,14]
[400665175,1767775848617,-471.28585763,0.00038356,14]
[400665177,1767775848627,-564.7285668,0.00038356,14]
[400665179,1767775848636,-2099.5,0.00038356,14]
[400665181,1767775848645,-533.56800124,0.00038356,14]
[400665183,1767775848654,-518.77195929,0.00038356,14]
[400665185,1767775848663,-500.0,0.00038356,14]
[400665186,1767775848673,-500.0,0.00038356,14]
[400665189,1767775848683,-541.4828144,0.00038356,14]
[400665190,1767775848692,-500.0,0.00038356,14]
[400665193,1767775848702,-500.0,0.00038356,14]
[400665195,1767775848711,-528.65,0.00038356,14]
[400665197,1767775848723,-500.0,0.00038356,14]
[400665199,1767775848732,-500.0,0.00038356,14]
[400665201,1767775848742,-500.0,0.00038356,14]
[400665203,1767775848751,-500.0,0.00038356,14]
[400665205,1767775848760,-500.0,0.00038356,14]
[400665207,1767775848770,-500.0,0.00038356,14]
[400665209,1767775848779,-500.0,0.00038356,14]
[400665211,1767775848788,-500.0,0.00038356,14]
[400665213,1767775848798,-508.82001241,0.00038356,14]
[400665214,1767775848807,-1555.68,0.00038356,14]
[400665216,1767775848816,-500.0,0.00038356,14]
[400665218,1767775848826,-1943.44,0.00038356,14]
[400665220,1767775848835,-500.0,0.00038356,7]
[400665222,1767775848844,-500.0,0.00038356,14]
[400665224,1767775848853,-304.31052001,0.00038356,14]
[400665226,1767775848863,-500.0,0.00038356,14]
[400665228,1767775848873,-500.0,0.00038356,14]
[400665230,1767775848882,-607.86193487,0.00038356,14]
[400665232,1767775848891,-530.19861867,0.00038356,14]
[400665234,1767775848900,-563.25,0.00038356,14]
[400665236,1767775848909,-500.0,0.00038356,14]
[400665238,1767775848919,-500.0,0.00038356,14]
[400665241,1767775848928,-500.0,0.00038356,14]
[400665243,1767775848937,-680.1,0.00038356,14]
[400665245,1767775848946,-500.0,0.00038356,14]
[400665247,1767775848956,-500.0,0.00038356,14]
[400665249,1767775848965,-500.0,0.00038356,14]
[400665251,1767775848975,-500.0,0.00038356,14]
[400665253,1767775848984,-1347.61,0.00038356,14]
[400665255,1767775848993,-570.67,0.00038356,14]
[400665257,1767775849002,-500.0,0.00038356,14]
[400665259,1767775849011,-500.0,0.00038356,14]
[400665261,1767775849020,-500.0,0.00038356,14]
[400665263,1767775849029,-500.0,0.00038356,14]
[400665265,1767775849038,-1806.99,0.00038356,14]
[400665266,1767775849047,-500.0,0.00038356,14]
[400665268,1767775849057,-500.0,0.00038356,14]
[400665270,1767775849067,-500.0,0.00038356,14]
[400665272,1767775849076,-500.0,0.00038356,14]
[400665274,1767775849087,-151.0,0.00038356,120]
[400665276,1767775849096,-151.0,0.00038356,120]
[400665278,1767775849106,-500.0,0.00038356,14]
[400665280,1767775849115,-151.0,0.00038356,120]
[400665281,1767775849125,-500.0,0.00038356,14]
[400665282,1767775849133,-500.0,0.00038356,14]
[400665283,1767775849142,-500.0,0.00038356,14]
[400665284,1767775849150,-500.0,0.00038356,14]
[400665285,1767775849159,-500.0,0.00038356,14]
[400665286,1767775849167,-500.0,0.00038356,14]
[400665287,1767775849176,-500.0,0.00038356,14]
[400665288,1767775849185,-500.0,0.00038356,14]
[400665290,1767775849193,-500.0,0.00038356,14]
[400665292,1767775849202,-500.0,0.00038356,14]
[400665294,1767775849211,-500.0,0.00038356,14]
[400665296,1767775849220,-544.1,0.00038356,14]
[400665298,1767775849228,-500.0,0.00038356,12]
[400665300,1767775849237,-500.0,0.00038356,14]
[400665302,1767775849246,-500.0,0.00038356,14]
[400665304,1767775849254,-500.0,0.00038356,14]
[400665306,1767775849263,-579.20707059,0.00038356,14]
[400665308,1767775849272,-608.44399695,0.00038356,14]
[400665310,1767775849281,-500.0,0.00038356,14]
[400665311,1767775849289,-542.685375,0.00038356,14]
[400665313,1767775849298,-500.0,0.00038356,14]
[400665315,1767775849307,-500.0,0.00038356,14]
[400665317,1767775849316,-500.0,0.00038356,14]
[400665319,1767775849325,-500.0,0.00038356,14]
[400665321,1767775849334,-500.0,0.00038356,14]
[400665323,1767775849343,-500.0,0.00038356,7]
[400665325,1767775849353,-2497.76,0.00038356,14]
[400665327,1767775849362,-700.32,0.00038356,14]
[400665329,1767775849371,-648.28,0.00038356,14]
[400665331,1767775849380,-500.0,0.00038356,14]
[400665333,1767775849389,-500.0,0.00038356,14]
[400665335,1767775849402,-500.0,0.00038356,14]
[400665337,1767775849411,-500.0,0.00038356,14]
[400665339,1767775849420,-1706.97,0.00038356,14]
[400665341,1767775849431,-500.0,0.00038356,14]
[400665343,1767775849440,-500.0,0.00038356,14]
[400665345,1767775849450,-2779.68,0.00038356,14]
[400665347,1767775849459,-760.54,0.00038356,14]
[400665349,1767775849469,-500.0,0.00038356,14]
[400665351,1767775849478,-1469.97,0.00038356,14]
[400665353,1767775849487,-420.78612512,0.00038356,14]
[400665355,1767775849497,-500.0,0.00038356,14]
[400665357,1767775849506,-1046.84,0.00038356,14]
[400665359,1767775849515,-1702.34,0.00038356,14]
[400665361,1767775849525,-500.0,0.00038356,14]
[400665363,1767775849542,-638.01900718,0.00038356,14]
[400665365,1767775849553,-500.0,0.00038356,14]
[400665367,1767775849562,-151.0,0.00038356,30]
[400665369,1767775849571,-500.0,0.00038356,14]
[400665371,1767775849580,-500.0,0.00038356,14]
[400665373,1767775849590,-673.42,0.00038356,14]
[400665375,1767775849599,-500.0,0.00038356,14]
[400665377,1767775849608,-1302.45,0.00038356,14]
[400665379,1767775849617,-974.78,0.00038356,14]
[400665381,1767775849629,-822.93,0.00038356,14]
[400665383,1767775849638,-500.0,0.00038356,14]
[400665385,1767775849647,-500.0,0.00038356,14]
[400665387,1767775849657,-500.0,0.00038356,14]
[400665389,1767775849666,-924.78,0.00038356,14]
[400665391,1767775849675,-614.2,0.00038356,14]
[400665393,1767775849685,-1421.08,0.00038356,14]
[400665395,1767775849694,-500.0,0.00038356,14]
[400665397,1767775849703,-500.0,0.00038356,14]
[400665399,1767775849712,-536.14182895,0.00038356,14]
[400665401,1767775849723,-500.0,0.00038356,14]
[400665403,1767775849735,-677.46,0.00038356,14]
[400665406,1767775849744,-633.731261,0.00038356,14]
[400665408,1767775849753,-500.0,0.00038356,14]
[400665410,1767775849762,-1042.57,0.00038356,14]
[400665412,1767775849772,-948.27,0.00038356,14]
[400665414,1767775849781,-500.0,0.00038356,14]
[400665416,1767775849790,-500.0,0.00038356,14]
[400665418,1767775849799,-500.0,0.00038356,14]
[400665420,1767775849809,-500.0,0.00038356,14]
[400665422,1767775849819,-641.10097803,0.00038356,14]
[400665424,1767775849830,-500.0,0.00038356,14]
[400665426,1767775849840,-500.0,0.00038356,14]
[400665428,1767775849850,-1258.96,0.00038356,14]
[400665430,1767775849859,-500.0,0.00038356,14]
[400665432,1767775849868,-500.0,0.00038356,14]
[400665434,1767775849878,-500.0,0.00038356,14]
[400665436,1767775849887,-500.0,0.00038356,14]
[400665438,1767775849896,-151.0,0.00038356,120]
[400665440,1767775849906,-151.0,0.00038356,120]
[400665442,1767775849916,-500.0,0.00038356,14]
[400665444,1767775849926,-538.53,0.00038356,14]
[400665446,1767775849936,-500.0,0.00038356,14]
[400665448,1767775849945,-215.557209,0.00038356,120]
[400665450,1767775849955,-151.0,0.00038356,120]
[400665452,1767775849965,-500.0,0.00038356,14]
[400665454,1767775849974,-500.0,0.00038356,14]
[400665456,1767775849984,-151.0,0.00038356,120]
[400665458,1767775849993,-500.0,0.00038356,14]
[400665460,1767775850003,-500.0,0.00038356,14]
[400665463,1767775850013,-151.0,0.00038356,120]
[400665465,1767775850022,-590.83,0.00038356,14]
[400665467,1767775850031,-500.0,0.00038356,14]
[400665469,1767775850041,-760.22,0.00038356,14]
[400665471,1767775850050,-500.0,0.00038356,14]
[400665473,1767775850060,-620.22,0.00038356,14]
[400665475,1767775850069,-500.0,0.00038356,14]
[400665477,1767775850078,-500.0,0.00038356,14]
[400665479,1767775850087,-515.08412896,0.00038356,14]
[400665481,1767775850097,-500.0,0.00038356,14]
[400665483,1767775850106,-500.0,0.00038356,14]
[400665485,1767775850117,-500.0,0.00038356,14]
[400665487,1767775850126,-500.0,0.00038356,14]
[400665489,1767775850136,-500.0,0.00038356,14]
[400665491,1767775850146,-500.0,0.00038356,14]
[400665493,1767775850156,-500.0,0.00038356,14]
[400665495,1767775850165,-500.0,0.00038356,14]
[400665497,1767775850175,-500.0,0.00038356,14]
[400665499,1767775850185,-504.64,0.00038356,14]
[400665501,1767775850195,-1854.82,0.00038356,14]
[400665503,1767775850204,-500.0,0.00038356,14]
[400665505,1767775850214,-500.0,0.00038356,14]
[400665507,1767775850224,-843.83,0.00038356,14]
[400665509,1767775850234,-500.0,0.00038356,14]
[400665511,1767775850244,-500.0,0.00038356,14]
[400665514,1767775850254,-500.0,0.00038356,14]
[400665516,1767775850264,-370.02737642,0.00038356,2]
[400665518,1767775850274,-500.0,0.00038356,14]
[400665520,1767775850283,-500.0,0.00038356,14]
[400665522,1767775850293,-500.0,0.00038356,14]
[400665524,1767775850303,-518.03815747,0.00038356,14]
[400665526,1767775850313,-500.0,0.00038356,14]
[400665528,1767775850323,-647.93075554,0.00038356,14]
[400665530,1767775850332,-500.0,0.00038356,14]
[400665532,1767775850342,-500.0,0.00038356,14]
[400665534,1767775850352,-500.0,0.00038356,14]
[400665536,1767775850362,-521.41752696,0.00038356,14]
[400665538,1767775850372,-1765.19,0.00038356,14]
[400665540,1767775850381,-500.0,0.00038356,14]